fUSD/lending_fUSD_20250416
["ID","MTS","AMOUNT","RATE_DAILY","PERIOD"]
[358191186,1744824654104,-500.0,0.0005541,120]
[358191187,1744824654119,-500.0,0.0005541,120]
[358191188,1744824654129,-500.0,0.0005541,120]
[358191189,1744824654138,-500.0,0.0005541,120]
[358191190,1744824654152,-500.0,0.0005541,120]
[358191191,1744824654162,-500.0,0.0005541,120]
[358191192,1744824654172,-438.8920065,0.00055424,15]
[358191193,1744824654181,-276.17359114,0.00055425,15]
[358191194,1744824654191,-500.0,0.00055468,120]
[358191195,1744824654202,-500.0,0.00055468,120]
[358191196,1744824654211,-500.0,0.00055468,120]
[358191197,1744824654221,-690.73,0.00055477,120]
[358191198,1744824654231,-500.0,0.00055477,120]
[358191199,1744824654240,-500.0,0.00055477,120]
[358191200,1744824654250,-500.0,0.00055477,120]
[358191201,1744824654260,-500.0,0.00055477,120]
[358191202,1744824654273,-500.0,0.00055477,120]
[358191203,1744824654284,-500.0,0.00055477,120]
[358191204,1744824654294,-311.81657367,0.00055477,120]
[358191205,1744824654304,-500.0,0.00055477,120]
[358191206,1744824654314,-2122.38,0.00055477,120]
[358191207,1744824654323,-500.0,0.00055477,120]
[358191208,1744824654333,-6015.51,0.00055478,120]
[358191209,1744824654343,-1493.13,0.00055478,120]
[358191210,1744824654353,-500.0,0.00055478,120]
[358191211,1744824654363,-588.03,0.00055478,120]
[358191212,1744824654372,-500.0,0.00055478,8]
[358191213,1744824654381,-546.17,0.00055478,120]
[358191214,1744824654390,-500.0,0.00055478,120]
[358191215,1744824654402,-409.73,0.00055478,120]
[358191216,1744824654412,-500.0,0.00055478,120]
[358191217,1744824654422,-500.0,0.00055478,120]
[358191218,1744824654432,-500.0,0.00055478,120]
[358191219,1744824654442,-500.0,0.00055478,120]
[358191220,1744824654452,-5.60661114,0.00055478,120]
[358191221,1744824654757,-151.0,0.00047237,15]
[358191222,1744824654767,-151.0,0.00047237,15]
[358191223,1744824654776,-154.52355397,0.00054999,120]
[358191224,1744824654787,-345.47644603,0.00054999,120]
[358191225,1744824654797,-500.0,0.00055194,120]
[358191226,1744824654806,-97.60009641,0.00055331,120]
[358191227,1744824654818,-265.90000001,0.00055331,120]
[358191228,1744824654835,-262.55219151,0.00055331,120]
[358191229,1744824654845,-494.39338886,0.00055478,120]
[358191230,1744824654855,-500.0,0.00055478,120]
[358191231,1744824654866,-500.0,0.00055478,120]
[358191232,1744824654875,-500.0,0.00055478,120]
[358191233,1744824654884,-500.0,0.00055478,120]
[358191234,1744824654893,-500.0,0.00055478,120]
[358191235,1744824654904,-500.0,0.00055478,120]
[358191236,1744824654914,-500.0,0.00055478,120]
[358191237,1744824654924,-500.0,0.00055478,120]
[358191238,1744824654933,-500.0,0.00055478,120]
[358191239,1744824654943,-500.0,0.00055478,120]
[358191240,1744824654952,-500.0,0.00055478,120]
[358191241,1744824654962,-1229.05,0.00055478,120]
[358191242,1744824654972,-500.0,0.00055478,120]
[358191243,1744824654982,-500.0,0.00055478,120]
[358191244,1744824654991,-500.0,0.00055478,120]
[358191245,1744824655000,-815.83,0.00055478,120]
[358191246,1744824655010,-500.0,0.00055478,120]
[358191247,1744824655019,-500.0,0.00055478,120]
[358191248,1744824655029,-96672.45,0.00055478,7]
[358191249,1744824655038,-608.79,0.00055478,120]
[358191250,1744824655047,-500.0,0.00055478,120]
[358191251,1744824655057,-977.69,0.00055478,2]
[358191252,1744824655067,-513.43,0.00055478,120]
[358191253,1744824655076,-1300.01,0.00055478,120]
[358191254,1744824655086,-500.0,0.00055478,120]
[358191255,1744824655095,-500.0,0.00055478,120]
[358191256,1744824655105,-500.0,0.00055478,120]
[358191257,1744824655114,-500.0,0.00055478,120]
[358191258,1744824655125,-500.0,0.00055478,120]
[358191259,1744824655135,-500.0,0.00055478,120]
[358191260,1744824655144,-500.0,0.00055478,120]
[358191261,1744824655157,-500.0,0.00055478,120]
[358191262,1744824655167,-500.0,0.00055478,120]
[358191263,1744824655176,-500.0,0.00055478,120]
[358191264,1744824655186,-500.0,0.00055478,120]
[358191265,1744824655195,-500.0,0.00055478,120]
[358191266,1744824655206,-500.0,0.00055478,120]
[358191267,1744824655215,-500.0,0.00055478,120]
[358191268,1744824655224,-500.0,0.00055478,120]
[358191269,1744824655234,-500.0,0.00055478,120]
[358191270,1744824655244,-500.0,0.00055478,120]
[358191271,1744824655253,-500.0,0.00055478,118]
[358191272,1744824655263,-500.0,0.00055478,120]
[358191273,1744824655273,-2582.15,0.00055478,120]
[358191274,1744824655283,-500.0,0.00055478,120]
[358191275,1744824655293,-908.53,0.00055478,120]
[358191276,1744824655304,-500.0,0.00055478,120]
[358191277,1744824655314,-728.18,0.00055478,120]
[358191278,1744824655323,-669.76,0.00055478,120]
[358191279,1744824655333,-500.0,0.00055478,120]
[358191280,1744824655342,-500.0,0.00055478,120]
[358191281,1744824655352,-500.0,0.00055478,120]
[358191282,1744824655361,-500.0,0.00055478,120]
[358191283,1744824655371,-500.0,0.00055478,120]
[358191284,1744824655380,-233.63,0.00055478,120]
[358191285,1744824655390,-500.0,0.00055478,120]
[358191286,1744824655401,-500.0,0.00055478,120]
[358191287,1744824655410,-500.0,0.00055478,120]
[358191288,1744824655420,-500.0,0.00055478,120]
[358191289,1744824655429,-500.0,0.00055478,120]
[358191290,1744824655439,-500.0,0.00055478,120]
[358191291,1744824655448,-500.0,0.00055478,120]
[358191292,1744824655459,-500.0,0.00055478,120]
[358191293,1744824655468,-500.0,0.00055478,120]
[358191294,1744824655478,-500.0,0.00055478,120]
[358191295,1744824655488,-500.0,0.00055478,120]
[358191296,1744824655497,-1640.06,0.00055478,120]
[358191297,1744824655507,-500.0,0.00055478,120]
[358191298,1744824655516,-747.28,0.00055478,120]
[358191299,1744824655526,-1841.98978835,0.00055478,120]
[358191300,1744824655538,-85.50021165,0.00055478,120]
[358191301,1744824655547,-500.0,0.00055478,120]
[358191302,1744824655557,-500.0,0.00055478,120]
[358191303,1744824655566,-53.48782836,0.00055479,120]
[358191304,1744824655577,-300.69839998,0.00055479,120]
[358191305,1744824655588,-145.81377166,0.00055479,120]
[358191306,1744824655598,-500.0,0.00055479,120]
[358191307,1744824655607,-500.0,0.00055479,120]
[358191308,1744824655617,-445.51836498,0.00055479,120]
[358191309,1744824655633,-54.48163502,0.00055479,120]
[358191310,1744824655644,-200.97396498,0.00055479,120]
[358191311,1744824655659,-524.97603502,0.00055479,120]
[358191312,1744824655670,-644.71,0.00055479,120]
[358191313,1744824655680,-546.86,0.00055479,120]
[358191314,1744824655691,-500.0,0.00055479,120]
[358191315,1744824655700,-669.46,0.00055479,120]
[358191316,1744824655710,-500.0,0.00055479,120]
[358191317,1744824655719,-500.0,0.00055479,120]
[358191318,1744824655729,-500.0,0.00055479,120]
[358191319,1744824655739,-512.75,0.00055479,120]
[358191320,1744824655749,-500.0,0.00055479,120]
[358191321,1744824655758,-500.0,0.00055479,120]
[358191322,1744824655767,-500.0,0.00055479,120]
[358191323,1744824655776,-500.0,0.00055479,120]
[358191324,1744824655786,-500.0,0.00055479,120]
[358191325,1744824655795,-500.0,0.00055479,120]
[358191326,1744824655805,-500.0,0.00055479,120]
[358191327,1744824655814,-57.24396498,0.00055479,120]
[358191328,1744824691780,264.332644,0.00017884,2]
[358191329,1744824694878,-10000.0,0.00018882,2]
[358191330,1744824704156,-2500.0,0.00018882,2]
[358191343,1744825816024,-180.0,0.00032877,30]
[358191344,1744825816054,-500.0,0.0003389,2]
[358191345,1744825816080,-150.0,0.00034548,10]
[358191346,1744825816102,-250.0,0.00036164,2]
[358191347,1744825816126,-250.0,0.00038953,2]
[358191348,1744825816147,-244.97,0.0004253,2]
[358191349,1744825816168,-321.55654427,0.00045,100]
[358191350,1744825816191,-550.0,0.00045399,5]
[358191351,1744825816213,-5559.0,0.000462,5]
[358191352,1744825816237,-550.0,0.00046399,5]
[358191353,1744825816260,-204.85,0.00046825,2]
[358191354,1744825816282,-1000.0,0.00047,45]
[358191355,1744825816306,-239.62345573,0.00048,60]
[358191356,1744825817834,-760.37654427,0.00048,60]
[358191357,1744825817860,-509.64,0.00048449,2]
[358191358,1744825817885,-200.0,0.00048472,2]
[358191359,1744825817907,-152.79,0.00048899,120]
[358191360,1744825817928,-8377.19345573,0.000489,30]
[358191361,1744825818764,-787.6340839,0.000489,30]
[358191362,1744825818790,-1000.0,0.00049,70]
[358191363,1744825818820,-315.26,0.00049014,2]
[358191364,1744825818846,-815.0,0.00049014,4]
[358191365,1744825818874,-204.85,0.00049089,2]
[358191366,1744825818900,-299.0,0.00049325,5]
[358191367,1744825818927,-204.85,0.00051352,2]
[358191368,1744825818951,-150.0,0.00051419,2]
[358191369,1744825818977,-500.0,0.00051786,2]
[358191370,1744825819000,-500.0,0.00051786,2]
[358191371,1744825819025,-286.438807,0.00051786,2]
[358191372,1744825819050,-201.21,0.00051939,2]
[358191373,1744825819080,-4735.7571091,0.00052015,2]
[358191374,1744825819475,-2582.7628909,0.00052015,2]
[358191375,1744825819499,-5602.74855559,0.00052081,2]
[358191376,1744825819523,-176.19,0.00052091,2]
[358191377,1744825819546,-1638.29855351,0.00052091,2]
[358191378,1744825820306,-838.58144649,0.00052091,2]
[358191379,1744825820342,-250.0,0.00052091,120]
[358191380,1744825820368,-250.0,0.00052091,120]
[358191381,1744825820396,-8661.41855351,0.00052091,2]
[358191382,1744825822444,-10000.0,0.00052091,2]
[358191383,1744825823086,-5238.58144649,0.00052091,2]
[358191384,1744825823109,-162.74,0.00052091,2]
[358191385,1744825823131,-183.82,0.00052091,120]
[358191386,1744825823153,-2000.0,0.00052102,120]
[358191387,1744825823176,-153.0,0.00052118,120]
[358191388,1744825823200,-368.783,0.00052172,95]
[358191389,1744825823223,-278.97,0.00052172,2]
[358191390,1744825823247,-1614.10555351,0.00052387,2]
[358191391,1744825824363,-36.52444649,0.00052387,2]
[358191392,1744825824395,-9963.47555351,0.00052387,2]
[358191393,1744825825331,-150.0,0.00052387,2]
[358191394,1744825825355,-9850.0,0.00052387,2]
[358191404,1744825831575,-428.5,0.00034807,30]
[358191405,1744825831588,-418.39602884,0.0004497,120]
[358191408,1744825835624,-151.0,0.00038328,2]
[358191409,1744825835634,-438.47196682,0.0004497,120]
[358191419,1744825836031,-3000.0,0.00052387,2]
[358191432,1744825837609,-1143.13200434,0.0004497,120]
[358191433,1744825837619,-771.129042,0.0004497,120]
[358191434,1744825837629,-10274.29444649,0.00052387,2]
[358191436,1744825837639,-1000.0,0.00052397,120]
[358191437,1744825837649,-300.0,0.00053461,120]
[358191438,1744825837658,-204.85,0.00053616,2]
[358191439,1744825837669,-3917.8814,0.000539,2]
[358191440,1744825837678,-167.32,0.00053937,2]
[358191441,1744825837688,-9827.93,0.00053938,2]
[358191442,1744825837698,-35158.6604507,0.00054,7]
[358191443,1744825837708,-11758.54564044,0.0005473,2]
[358191444,1744825837877,-2099.75158819,0.0005473,2]
[358191445,1744825837891,-1383.96357637,0.0005473,2]
[358191446,1744825837906,-806.75677624,0.0005473,2]
[358191447,1744825837927,-2165.60841652,0.0005473,2]
[358191449,1744825837939,-591.22786384,0.0005473,2]
[358191490,1744825839704,-253.57,0.00038421,2]
[358191491,1744825839714,-1326.43000001,0.0005473,2]
[358191492,1744825840263,-103.90975,0.0005473,2]
[358191493,1744825840279,-18694.61958839,0.0005473,2]
[358191494,1744825840288,-1000.0,0.0005473,2]
[358191495,1744825840298,-1088.6502,0.00054731,2]
[358191496,1744825840308,-213.9,0.0005482,30]
[358191497,1744825840317,-202.8681,0.0005482,2]
[358191498,1744825840328,-442.1948,0.00054829,2]
[358191499,1744825840344,-168.4897,0.00054829,2]
[358191500,1744825840354,-586.91449124,0.0005483,80]
[358191502,1744825840364,-1204.6704,0.0005483,2]
[358191503,1744825840374,-27770.1387,0.0005483,2]
[358191504,1744825840386,-6725.9437,0.0005483,2]
[358191505,1744825840396,-300.0,0.0005483,120]
[358191506,1744825840406,-950.566,0.00054899,2]
[358191507,1744825840415,-213.9,0.00054919,30]
[358191508,1744825840425,-213.9,0.00054919,30]
[358191510,1744825840435,-292.61,0.00054919,30]
[358191512,1744825840446,-500.0,0.00054928,120]
[358191514,1744825840455,-546.83,0.00054928,120]
[358191516,1744825840465,-712.39,0.00054928,120]
[358191518,1744825840475,-1431.35,0.00054928,120]
[358191520,1744825840484,-500.0,0.00054928,120]
[358191522,1744825840494,-566.32696445,0.00054928,120]
[358191524,1744825840503,-500.0,0.00054928,120]
[358191526,1744825840513,-500.0,0.00054928,120]
[358191528,1744825840523,-500.0,0.00054928,120]
[358191530,1744825840533,-500.0,0.00054929,120]
[358191532,1744825840543,-500.0,0.00054929,120]
[358191534,1744825840555,-1024.87,0.00054929,120]
[358191536,1744825840565,-228.30750356,0.00054929,120]
[358191538,1744825840574,-500.0,0.00054929,120]
[358191540,1744825840593,-519.79,0.00054929,120]
[358191542,1744825840603,-500.0,0.00054929,120]
[358191543,1744825840613,-500.0,0.00054929,120]
[358191544,1744825840623,-500.0,0.00054929,120]
[358191545,1744825840633,-502.1,0.00054929,120]
[358191546,1744825840643,-546.67,0.00054929,120]
[358191547,1744825840653,-500.0,0.00054929,120]
[358191548,1744825840663,-500.0,0.00054929,120]
[358191549,1744825840673,-500.0,0.00054929,30]
[358191550,1744825840683,-500.0,0.00054929,120]
[358191551,1744825840693,-500.0,0.00054929,120]
[358191552,1744825840703,-500.0,0.00054929,120]
[358191553,1744825840713,-500.0,0.00054929,120]
[358191554,1744825840722,-505.55710527,0.00054929,120]
[358191555,1744825840732,-500.0,0.00054929,120]
[358191556,1744825840742,-500.0,0.00054929,120]
[358191557,1744825840752,-500.0,0.00054929,120]
[358191558,1744825840761,-500.0,0.00054929,120]
[358191559,1744825840774,-500.0,0.00054929,120]
[358191560,1744825840784,-500.0,0.00054929,120]
[358191561,1744825840795,-500.0,0.00054929,120]
[358191562,1744825840804,-500.0,0.00054929,120]
[358191563,1744825840813,-500.0,0.00054929,120]
[358191564,1744825840823,-506.20188544,0.00054929,30]
[358191565,1744825840836,-500.0,0.00054929,120]
[358191566,1744825840846,-408.19075707,0.00054929,120]
[358191567,1744825840855,-500.0,0.00054929,120]
[358191568,1744825840864,-500.0,0.00054929,120]
[358191569,1744825840874,-500.0,0.00054929,120]
[358191570,1744825840883,-500.0,0.00054929,120]
[358191571,1744825840892,-500.0,0.00054929,120]
[358191572,1744825840902,-500.0,0.00054929,120]
[358191573,1744825840911,-500.0,0.00054929,120]
[358191574,1744825840920,-500.0,0.00054929,120]
[358191575,1744825840932,-500.0,0.00054929,120]
[358191576,1744825840942,-500.0,0.00054929,120]
[358191577,1744825840951,-500.0,0.00054929,120]
[358191578,1744825840960,-486.52932164,0.00054929,120]
[358191579,1744825840970,-500.0,0.00054929,120]
[358191580,1744825840979,-500.0,0.00054929,120]
[358191581,1744825840988,-500.0,0.00054929,120]
[358191582,1744825840998,-500.0,0.00054929,120]
[358191583,1744825841007,-500.0,0.00054929,120]
[358191584,1744825841017,-500.0,0.00054929,120]
[358191585,1744825841034,-500.0,0.00054929,120]
[358191586,1744825841043,-815.28,0.00054929,120]
[358191587,1744825841053,-500.0,0.00054929,120]
[358191588,1744825841062,-500.0,0.00054929,120]
[358191589,1744825841075,-500.0,0.00054929,120]
[358191590,1744825841090,-500.0,0.00054929,120]
[358191591,1744825841099,-500.0,0.00054929,120]
[358191592,1744825841110,-500.0,0.00054929,120]
[358191593,1744825841120,-497.9309317,0.00054929,120]
[358191594,1744825841131,-500.0,0.00054929,120]
[358191595,1744825841140,-500.0,0.00054929,120]
[358191596,1744825841150,-500.0,0.00054929,120]
[358191597,1744825841159,-500.0,0.00054929,120]
[358191598,1744825841168,-500.0,0.00054929,120]
[358191599,1744825841177,-500.0,0.00054929,120]
[358191600,1744825841186,-1000.0,0.00054929,120]
[358191601,1744825841197,-500.0,0.00054929,120]
[358191602,1744825841206,-473.55,0.00054929,120]
[358191603,1744825841216,-500.0,0.00054929,120]
[358191604,1744825841226,-500.0,0.00054929,120]
[358191605,1744825841235,-500.0,0.00054929,120]
[358191606,1744825841244,-500.0,0.00054929,120]
[358191607,1744825841254,-500.0,0.00054929,120]
[358191608,1744825841263,-500.0,0.00054929,120]
[358191609,1744825841272,-500.0,0.00054929,120]
[358191610,1744825841282,-500.0,0.00054929,120]
[358191611,1744825841291,-500.0,0.00054929,120]
[358191612,1744825841300,-500.0,0.00054929,120]
[358191613,1744825841311,-504.85139225,0.00054929,120]
[358191614,1744825841320,-434.14631903,0.00054929,120]
[358191615,1744825841330,-500.0,0.0005493,120]
[358191616,1744825841343,-500.04593764,0.0005493,120]
[358191617,1744825841352,-500.0,0.0005493,120]
[358191618,1744825841362,-500.0,0.0005493,120]
[358191619,1744825841371,-500.0,0.0005493,120]
[358191620,1744825841380,-180.3198,0.00054956,2]
[358191621,1744825841389,-213.9,0.00054988,30]
[358191622,1744825841399,-178.43984705,0.00054997,7]
[358191623,1744825841408,-500.0,0.00054997,120]
[358191624,1744825841417,-559.21391001,0.00054997,120]
[358191625,1744825841427,-500.0,0.00054998,120]
[358191626,1744825841436,-1024.87,0.00054998,120]
[358191627,1744825841446,-500.0,0.00054998,120]
[358191628,1744825841456,-500.0,0.00054998,120]
[358191629,1744825841465,-500.0,0.00054998,120]
[358191630,1744825841475,-502.1,0.00054998,120]
[358191631,1744825841484,-546.67,0.00054998,120]
[358191632,1744825841494,-500.0,0.00054998,120]
[358191633,1744825841505,-500.0,0.00054998,120]
[358191634,1744825841515,-500.0,0.00054998,30]
[358191635,1744825841525,-500.0,0.00054998,120]
[358191636,1744825841534,-500.0,0.00054998,120]
[358191637,1744825841545,-500.0,0.00054998,120]
[358191638,1744825841555,-515.3,0.00054998,120]
[358191639,1744825841564,-500.0,0.00054998,120]
[358191640,1744825841574,-500.0,0.00054998,120]
[358191641,1744825841589,-500.0,0.00054998,120]
[358191642,1744825841600,-500.0,0.00054998,120]
[358191643,1744825841609,-500.0,0.00054998,120]
[358191644,1744825841619,-500.0,0.00054998,120]
[358191645,1744825841628,-500.0,0.00054998,120]
[358191646,1744825841637,-634.92312517,0.00054998,120]
[358191647,1744825841647,-500.0,0.00054998,120]
[358191648,1744825841656,-500.0,0.00054998,120]
[358191649,1744825841666,-500.0,0.00054998,120]
[358191650,1744825841675,-500.0,0.00054998,120]
[358191651,1744825841686,-546.31850816,0.00054998,120]
[358191652,1744825841695,-500.0,0.00054998,120]
[358191653,1744825841704,-500.0,0.00054998,120]
[358191654,1744825841714,-500.0,0.00054998,120]
[358191655,1744825841723,-815.28,0.00054998,120]
[358191656,1744825841733,-500.0,0.00054998,120]
[358191657,1744825841743,-500.0,0.00054998,120]
[358191658,1744825841752,-510.92058642,0.00054998,120]
[358191659,1744825841762,-500.0,0.00054998,120]
[358191660,1744825841772,-500.0,0.00054998,120]
[358191661,1744825841782,-500.0,0.00054998,120]
[358191662,1744825841791,-500.0,0.00054998,120]
[358191663,1744825841801,-1000.0,0.00054998,120]
[358191664,1744825841811,-500.0,0.00054998,120]
[358191665,1744825841820,-500.0,0.00054998,120]
[358191666,1744825841830,-500.0,0.00054998,120]
[358191667,1744825841845,-500.0,0.00054998,120]
[358191668,1744825841854,-156.74499104,0.00054998,120]
[358191669,1744825841864,-500.0,0.00054998,120]
[358191670,1744825841874,-500.0,0.00054998,120]
[358191671,1744825841884,-500.0,0.00054998,120]
[358191672,1744825841894,-500.0,0.00054998,120]
[358191673,1744825841904,-168.68,0.00054998,120]
[358191674,1744825841915,-500.0,0.00054999,120]
[358191675,1744825841925,-213.9,0.00055035,30]
[358191676,1744825841935,-213.9,0.00055035,30]
[358191677,1744825841946,-213.9,0.00055036,30]
[358191678,1744825841956,-213.9,0.00055044,30]
[358191679,1744825841967,-213.9,0.00055045,30]
[358191680,1744825841978,-37500.1130382,0.00055045,2]
[358191681,1744825841988,-213.9,0.00055045,30]
[358191682,1744825841999,-31250.0941985,0.00055046,2]
[358191683,1744825842009,-3125.00941985,0.00055047,2]
[358191684,1744825842019,-500.0,0.00055054,120]
[358191685,1744825842031,-500.0,0.00055054,120]
[358191686,1744825842040,-500.0,0.00055054,120]
[358191687,1744825842050,-500.0,0.00055054,120]
[358191688,1744825842060,-500.0,0.00055054,120]
[358191689,1744825842072,-500.0,0.00055054,120]
[358191690,1744825842085,-500.0,0.00055054,120]
[358191691,1744825842095,-310.40474732,0.00055054,120]
[358191692,1744825842105,-522.1,0.00055054,120]
[358191693,1744825842115,-546.83,0.00055054,120]
[358191694,1744825842125,-500.0,0.00055054,120]
[358191695,1744825842134,-500.0,0.00055054,120]
[358191696,1744825842144,-500.0,0.00055054,120]
[358191697,1744825842155,-558.49,0.00055054,120]
[358191698,1744825842166,-712.39,0.00055054,120]
[358191699,1744825842176,-1431.35,0.00055054,120]
[358191700,1744825842187,-500.0,0.00055054,120]
[358191701,1744825842197,-500.0,0.00055054,120]
[358191702,1744825842206,-500.0,0.00055054,120]
[358191703,1744825842216,-500.0,0.00055054,120]
[358191704,1744825842226,-500.0,0.00055054,120]
[358191705,1744825842235,-290.7,0.00055054,120]
[358191706,1744825842246,-500.0,0.00055054,120]
[358191707,1744825842255,-500.0,0.00055054,120]
[358191708,1744825842265,-500.0,0.00055054,120]
[358191709,1744825842275,-18750.0565191,0.00055055,2]
[358191710,1744825842285,-1024.87,0.00055055,120]
[358191711,1744825842295,-500.0,0.00055055,120]
[358191712,1744825842304,-500.0,0.00055055,120]
[358191713,1744825842313,-500.0,0.00055055,120]
[358191714,1744825842323,-645.87,0.00055055,120]
[358191715,1744825842335,-500.0,0.00055055,120]
[358191716,1744825842345,-500.0,0.00055055,120]
[358191717,1744825842356,-79029.92,0.00055055,7]
[358191718,1744825842367,-500.0,0.00055055,120]
[358191719,1744825842378,-500.0,0.00055055,120]
[358191720,1744825842390,-1006.11,0.00055055,2]
[358191721,1744825842400,-500.0,0.00055055,120]
[358191722,1744825842411,-500.0,0.00055055,120]
[358191723,1744825842421,-1091.67,0.00055055,120]
[358191724,1744825842432,-500.0,0.00055055,118]
[358191725,1744825842442,-500.0,0.00055055,120]
[358191726,1744825842452,-500.0,0.00055055,120]
[358191727,1744825842462,-530.23,0.00055055,120]
[358191728,1744825842472,-500.0,0.00055055,120]
[358191729,1744825842483,-582.56189938,0.00055055,120]
[358191730,1744825842493,-208.0742339,0.00055055,120]
[358191733,1744825842503,-500.0,0.00055055,120]
[358191736,1744825842513,-500.0,0.00055055,120]
[358191739,1744825842524,-500.0,0.00055055,120]
[358191742,1744825842534,-500.0,0.00055055,120]
[358191744,1744825842543,-500.0,0.00055055,120]
[358191746,1744825842553,-500.0,0.00055055,120]
[358191747,1744825842565,-199.73971141,0.00055055,120]
[358191748,1744825842575,-500.0,0.00055055,120]
[358191749,1744825842591,-500.0,0.00055055,120]
[358191750,1744825842601,-500.0,0.00055055,120]
[358191751,1744825842611,-500.0,0.00055055,120]
[358191752,1744825842621,-500.0,0.00055055,120]
[358191753,1744825842630,-530.46329354,0.00055055,120]
[358191754,1744825842640,-500.0,0.00055055,120]
[358191755,1744825842649,-500.8290252,0.00055055,120]
[358191756,1744825842658,-520.86120378,0.00055055,120]
[358191757,1744825842668,-490.92535277,0.00055055,120]
[358191758,1744825842679,-1957.73,0.00055055,120]
[358191759,1744825842690,-507.05410616,0.00055055,120]
[358191760,1744825842699,-500.0,0.00055055,120]
[358191761,1744825842709,-505.84386629,0.00055055,120]
[358191762,1744825842720,-504.73265485,0.00055055,120]
[358191763,1744825842733,-500.0,0.00055055,120]
[358191764,1744825842743,-500.0,0.00055055,120]
[358191765,1744825842754,-506.29327504,0.00055055,120]
[358191766,1744825842764,-570.31791575,0.00055055,120]
[358191767,1744825842775,-500.0,0.00055055,120]
[358191768,1744825842785,-544.19556515,0.00055055,120]
[358191769,1744825842795,-500.0,0.00055055,120]
[358191770,1744825842806,-500.0,0.00055055,120]
[358191771,1744825842816,-500.0,0.00055055,120]
[358191772,1744825842825,-500.0,0.00055055,120]
[358191773,1744825842839,-500.0,0.00055056,120]
[358191774,1744825842849,-500.0,0.00055056,120]
[358191775,1744825842858,-1024.87,0.00055056,120]
[358191776,1744825842868,-1024.87,0.00055056,120]
[358191777,1744825842877,-500.0,0.00055056,120]
[358191778,1744825842887,-627.37,0.00055056,120]
[358191779,1744825842896,-500.0,0.00055056,120]
[358191780,1744825842906,-500.0,0.00055056,120]
[358191781,1744825842915,-500.0,0.00055056,120]
[358191782,1744825842924,-500.0,0.00055056,120]
[358191783,1744825842934,-502.1,0.00055056,120]
[358191784,1744825842943,-502.1,0.00055056,120]
[358191785,1744825842952,-546.67,0.00055056,120]
[358191786,1744825842962,-546.67,0.00055056,120]
[358191787,1744825842972,-500.0,0.00055056,120]
[358191788,1744825842981,-500.0,0.00055056,120]
[358191789,1744825842991,-500.0,0.00055056,30]
[358191790,1744825843001,-500.0,0.00055056,30]
[358191792,1744825843011,-500.0,0.00055056,120]
[358191794,1744825843020,-500.0,0.00055056,120]
[358191796,1744825843031,-500.0,0.00055056,120]
[358191797,1744825843041,-500.0,0.00055056,120]
[358191799,1744825843050,-500.0,0.00055056,120]
[358191801,1744825843059,-500.0,0.00055056,120]
[358191804,1744825843071,-500.0,0.00055056,120]
[358191807,1744825843080,-500.0,0.00055056,120]
[358191810,1744825843094,-500.0,0.00055056,120]